bitfinex/quotes_SOLUSD_20250822
["timestamp","ask_amount","ask_price","bid_price","bid_amount"]
[1755867886536,0.03,179.51,179.5,79.11172031]
[1755867887216,0.03,179.51,179.5,79.78172031]
[1755867888423,0.03,179.51,179.5,85.35275095]
[1755867888631,0.03,179.51,179.5,108.16438841]
[1755867889130,132.4,179.59,179.54,26.0]
[1755867889430,0.72,179.62,179.58,8.93172031]
[1755867889636,14.49902552,179.63,179.58,8.93172031]
[1755867889637,18.23351336,179.63,179.59,44.18]
[1755867889925,13.38620815,179.62,179.59,44.18]
[1755867890104,0.72,179.61,179.59,44.18]
[1755867890303,0.72,179.6,179.59,44.18]
[1755867890505,3.73448784,179.62,179.59,53.11172031]
[1755867890745,0.72,179.61,179.59,53.11172031]
[1755867891033,0.72,179.6,179.59,44.18]
[1755867891801,13.38620815,179.62,179.57,8.93172031]
[1755867892005,0.72,179.61,179.58,53.09172031]
[1755867892229,0.72,179.6,179.58,53.09172031]
[1755867892641,0.72,179.59,179.55,16.745277]
[1755867892940,14.49969738,179.6,179.55,8.93172031]
[1755867893114,0.72,179.58,179.55,8.93172031]
[1755867893314,15.21969738,179.6,179.56,53.09172031]
[1755867893508,0.72,179.59,179.56,8.93172031]
[1755867893709,6.28770999,179.61,179.57,53.09172031]
[1755867893910,0.72,179.6,179.57,53.09172031]
[1755867894216,0.72,179.6,179.54,34.93172]
[1755867894416,6.28825019,179.59,179.56,8.93172031]
[1755867894618,0.72,179.58,179.55,8.93172031]
[1755867894822,0.72,179.58,179.56,44.16]
[1755867895017,5.56825019,179.59,179.56,53.09172031]
[1755867895223,6.28801778,179.6,179.57,8.93172031]
[1755867895423,6.28801778,179.6,179.58,44.16]
[1755867895721,5.56801778,179.6,179.58,44.16]
[1755867895940,6.28801778,179.6,179.58,44.16]
[1755867896140,0.72,179.59,179.58,44.16]
[1755867896346,6.28829194,179.59,179.56,8.93172031]
[1755867896632,5.56829194,179.59,179.58,44.16]
[1755867896815,0.72,179.59,179.58,44.16]
[1755867897015,5.5680079,179.6,179.57,8.93172031]
[1755867897227,6.2880079,179.6,179.57,8.93172031]
[1755867897424,3.73796141,179.61,179.58,44.16]
[1755867897744,0.72,179.6,179.58,53.09172031]
[1755867898042,0.72,179.61,179.58,44.16]
[1755867898222,0.72,179.61,179.58,53.09172031]
[1755867899141,6.28768957,179.61,179.59,8.93172031]
[1755867899343,0.72,179.61,179.59,8.93172031]
[1755867900012,0.72,179.61,179.58,53.09172031]
[1755867900209,0.72,179.6,179.59,44.14]
[1755867900623,3.73711412,179.61,179.59,44.14]
[1755867900815,0.72,179.6,179.59,44.14]
[1755867901017,3.73742571,179.61,179.58,8.93172031]
[1755867901220,3.73742571,179.61,179.59,44.14]
[1755867901221,4.45742571,179.61,179.59,44.14]
[1755867901412,0.72,179.6,179.59,44.14]
[1755867901811,141.33172031,179.62,179.59,44.14]
[1755867902013,0.72,179.61,179.59,44.14]
[1755867902220,132.4,179.62,179.59,44.14]
[1755867902221,0.72,179.6,179.59,44.14]
[1755867902625,5.56700996,179.63,179.59,44.14]
[1755867902940,0.72,179.62,179.59,8.93172031]
[1755867903141,0.72,179.62,179.59,53.07172031]
[1755867903640,5.11480158,179.65,179.59,53.74172031]
[1755867903824,5.11480158,179.65,179.59,44.81]
[1755867903825,13.39106477,179.64,179.59,44.81]
[1755867904013,9.65172031,179.63,179.59,44.14]
[1755867904209,0.72,179.62,179.59,44.14]
[1755867904415,0.72,179.61,179.59,44.14]
[1755867904735,9.65172031,179.6,179.58,44.14]
[1755867905054,0.72,179.59,179.58,44.14]
[1755867905418,0.72,179.61,179.58,44.14]
[1755867905616,9.65172031,179.61,179.58,44.14]
[1755867905830,0.72,179.61,179.58,53.07172031]
[1755867906328,0.72,179.61,179.58,44.14]
[1755867906838,12.73092595,179.62,179.58,44.14]
[1755867907044,0.06,179.62,179.58,53.07172031]
[1755867907344,0.06,179.62,179.59,9.60172031]
[1755867908341,0.06,179.62,179.6,53.74172031]
[1755867908544,132.4,179.61,179.6,53.74172031]
[1755867908744,132.4,179.61,179.6,44.14]
[1755867908927,142.05172031,179.61,179.59,44.14]
[1755867909130,141.33172031,179.61,179.57,53.07172031]
[1755867909328,133.12,179.61,179.58,8.93172031]
[1755867909527,132.4,179.61,179.58,8.93172031]
[1755867909846,132.4,179.61,179.59,8.93172031]
[1755867911054,133.12,179.61,179.58,8.93172031]
[1755867911230,132.4,179.61,179.58,53.72172031]
[1755867911435,0.06,179.62,179.58,53.72172031]
[1755867911436,132.4,179.6,179.58,53.72172031]
[1755867912169,132.4,179.6,179.58,53.05172031]
[1755867912318,132.4,179.6,179.58,44.12]
[1755867912725,132.4,179.6,179.58,53.05172031]
[1755867912951,133.12,179.6,179.58,53.05172031]
[1755867913154,133.12,179.6,179.58,8.93172031]
[1755867913354,132.4,179.6,179.58,53.05172031]
[1755867913652,133.12,179.6,179.58,44.12]
[1755867913874,0.72,179.59,179.58,44.12]
[1755867914170,132.4,179.6,179.58,8.93172031]
[1755867914523,132.4,179.6,179.57,44.12]
[1755867914726,133.12,179.6,179.58,8.93172031]
[1755867914944,132.4,179.6,179.58,8.93172031]
[1755867915155,132.4,179.6,179.59,8.93172031]
[1755867915356,132.4,179.6,179.58,53.72172031]
[1755867915537,132.4,179.6,179.59,8.93172031]
[1755867916141,132.4,179.6,179.58,44.12]
[1755867916825,0.72,179.59,179.58,8.93172031]
[1755867917021,132.4,179.6,179.58,8.93172031]
[1755867917252,132.4,179.6,179.57,44.12]
[1755867917253,132.4,179.6,179.59,8.93172031]
[1755867917548,0.7,179.61,179.59,8.93172031]
[1755867917859,0.06,179.62,179.59,8.93172031]
[1755867918239,0.76,179.62,179.59,8.93172031]
[1755867919688,0.06,179.62,179.57,44.78]
[1755867919844,0.7,179.61,179.59,8.93172031]
[1755867920243,0.06,179.62,179.59,8.93172031]
[1755867920473,0.7,179.61,179.59,8.93172031]
[1755867920646,0.06,179.62,179.59,8.93172031]
[1755867920843,0.06,179.62,179.6,8.93172031]
[1755867921151,0.7,179.61,179.58,53.03172031]
[1755867921344,0.7,179.61,179.57,0.66]
[1755867921546,0.7,179.61,179.58,53.03172031]
[1755867921789,0.7,179.61,179.59,8.93172031]
[1755867922078,0.7,179.6,179.57,44.1]
[1755867922366,9.69172031,179.62,179.58,8.93172031]
[1755867922580,9.69172031,179.62,179.58,9.59172031]
[1755867922778,13.4344121,179.62,179.58,24.15075331]
[1755867923468,13.4344121,179.62,179.58,14.559033]
[1755867923469,132.4,179.59,179.58,14.559033]
[1755867924059,132.4,179.59,179.58,15.219033]
[1755867924575,132.4,179.59,179.58,24.15075331]
[1755867924745,0.06,179.62,179.58,29.71930214]
[1755867924946,0.06,179.62,179.61,8.93172031]
[1755867925149,0.06,179.62,179.61,53.03172031]
[1755867925376,0.06,179.62,179.61,53.69172031]
[1755867925572,0.06,179.62,179.61,70.43325931]
[1755867926580,0.06,179.62,179.61,61.501539]
[1755867926779,0.06,179.62,179.61,70.43325931]
[1755867927287,0.06,179.62,179.61,26.33325931]
[1755867927581,0.06,179.62,179.61,25.67325931]
[1755867927780,0.06,179.62,179.61,70.43325931]
[1755867927985,0.06,179.62,179.61,25.67325931]
[1755867928166,0.06,179.62,179.61,69.75325931]
[1755867928369,0.06,179.62,179.61,70.41325931]
[1755867929395,0.06,179.62,179.61,75.98087803]
[1755867933998,0.06,179.62,179.61,75.96087803]
[1755867934998,0.06,179.62,179.61,67.02915772]
[1755867935301,0.06,179.62,179.61,75.96087803]
[1755867943999,0.06,179.62,179.61,66.36915772]
[1755867944214,0.06,179.62,179.61,16.741539]
[1755867944513,0.06,179.62,179.61,75.94087803]
[1755867946774,0.06,179.62,179.61,89.82079518]
[1755867946980,0.06,179.64,179.63,0.28432314]
[1755867947281,0.06,179.64,179.63,92.85163746]
[1755867947481,0.06,179.64,179.63,93.54163746]
[1755867948284,0.06,179.64,179.63,73.10863629]
[1755867949528,0.66,179.72,179.66,26.0]
[1755867949696,0.66,179.72,179.71,8.93172031]
[1755867949896,0.66,179.72,179.71,52.95172031]
[1755867950317,0.66,179.72,179.71,44.02]
[1755867950490,0.66,179.72,179.71,52.95172031]
[1755867950690,0.66,179.72,179.71,69.68578831]
[1755867950993,0.66,179.72,179.71,60.754068]
[1755867951196,9.59172031,179.72,179.66,26.0]
[1755867951398,141.99172031,179.71,179.67,52.95172031]
[1755867951722,0.66,179.7,179.68,8.93172031]
[1755867951890,0.66,179.7,179.69,44.02]
[1755867952230,132.4,179.71,179.69,69.68952231]
[1755867952414,132.4,179.71,179.7,8.93172031]
[1755867952716,133.06,179.71,179.7,8.93172031]
[1755867952922,132.4,179.71,179.7,8.93172031]
[1755867954499,137.96300587,179.76,179.7,8.93172031]
[1755867954814,133.06,179.75,179.72,8.93172031]
[1755867955026,0.66,179.74,179.73,44.02]
[1755867955586,4.67430753,179.81,179.73,16.733135]
[1755867955811,8.93172031,179.77,179.74,44.0]
[1755867956018,0.66,179.76,179.74,44.0]
[1755867956219,0.66,179.75,179.74,8.93172031]
[1755867956434,0.66,179.75,179.69,6.25490162]
[1755867956625,0.66,179.75,179.73,8.93172031]
[1755867956801,0.66,179.75,179.74,52.931721]
[1755867957638,6.22328233,179.75,179.74,52.931721]
[1755867957810,6.22328233,179.75,179.71,8.93172031]
[1755867958011,0.66,179.74,179.73,57.904604]
[1755867958233,0.66,179.74,179.66,5.56586128]
[1755867958434,0.66,179.74,179.69,34.93172031]
[1755867958729,9.59172031,179.74,179.7,40.355001]
[1755867958907,0.66,179.73,179.7,49.28672131]
[1755867959429,0.66,179.72,179.7,40.355001]
[1755867959748,0.66,179.71,179.7,40.355001]
[1755867959925,0.66,179.71,179.7,44.0]
[1755867960730,0.66,179.71,179.69,14.495362]
[1755867960731,132.4,179.7,179.69,14.495362]
[1755867960926,132.4,179.69,179.66,15.68]
[1755867961109,8.93172031,179.67,179.66,15.68]
[1755867961304,0.66,179.67,179.66,15.68]
[1755867961918,0.66,179.67,179.64,14.495819]
[1755867962122,8.93172031,179.65,179.64,14.495819]
[1755867962424,15.15809938,179.65,179.64,14.495819]
[1755867962828,0.66,179.65,179.63,44.0]
[1755867963002,0.66,179.64,179.63,44.0]
[1755867963204,0.66,179.64,179.62,16.742473]
[1755867963404,0.66,179.67,179.62,0.69]
[1755867963632,8.93172031,179.65,179.62,15.188117]
[1755867963826,0.66,179.64,179.62,14.498117]
[1755867964026,8.93172031,179.63,179.62,14.498117]
[1755867964227,9.59172031,179.63,179.61,44.03]
[1755867964408,9.59172031,179.62,179.61,52.961721]
[1755867964610,15.15902907,179.62,179.61,8.961721]
[1755867964820,18.90122174,179.62,179.61,8.961721]
[1755867965027,15.15902907,179.62,179.61,8.961721]
[1755867965514,18.90122174,179.62,179.61,0.03]
[1755867965713,32.49681575,179.62,179.61,0.03]
[1755867965916,32.78113889,179.62,179.61,0.03]
[1755867966434,18.90122174,179.62,179.61,0.03]
[1755867967254,15.15902907,179.62,179.61,0.03]
[1755867968312,6.22730876,179.62,179.61,0.03]
[1755867968518,15.15902907,179.62,179.61,0.03]
[1755867968722,18.90079779,179.62,179.61,0.03]
[1755867970019,13.33348903,179.62,179.61,0.03]
[1755867970215,18.90079779,179.62,179.61,0.03]
[1755867971045,41.09239728,179.62,179.61,0.03]
[1755867971225,41.09242498,179.62,179.61,0.03]
[1755867971646,50.02414529,179.62,179.61,1e-08]
[1755867972029,41.09242498,179.62,179.61,1e-08]
[1755867972438,36.93658381,179.62,179.61,1e-08]
[1755867972738,41.08862126,179.62,179.61,1e-08]
[1755867973144,80.93658381,179.62,179.61,1e-08]
[1755867973458,76.78071494,179.62,179.61,1e-08]
[1755867975139,18.24079779,179.62,179.61,1e-08]
[1755867975340,8.93172031,179.63,179.61,1e-08]
[1755867975550,2.232953,179.67,179.61,0.69000001]
[1755867975551,2.892953,179.67,179.61,0.69000001]
[1755867975727,8.93172031,179.65,179.61,0.69000001]
[1755867975930,8.93172031,179.63,179.61,1e-08]
[1755867976453,15.15902907,179.62,179.61,8.93172001]
[1755867976658,14.49902907,179.62,179.61,1e-08]
[1755867977159,8.93172031,179.63,179.61,1e-08]
[1755867977334,8.93172031,179.62,179.61,1e-08]
[1755867978033,9.62172031,179.62,179.61,1e-08]
[1755867978539,14.49902907,179.62,179.61,1e-08]
[1755867979448,5.56730876,179.62,179.61,1e-08]
[1755867979653,14.49902907,179.62,179.61,1e-08]
[1755867980029,8.93172031,179.62,179.61,1e-08]
[1755867980246,14.49879535,179.63,179.61,0.68000001]
[1755867980845,14.49879535,179.63,179.61,1e-08]
[1755867981655,9.62172031,179.62,179.61,1e-08]
[1755867982060,15.18902907,179.62,179.61,1e-08]
[1755867982275,32.80065664,179.62,179.61,1e-08]
[1755867982439,41.73237695,179.62,179.61,1e-08]
[1755867982633,32.80065664,179.62,179.61,1e-08]
[1755867983437,76.80065664,179.62,179.61,1e-08]
[1755867983941,14.49902907,179.62,179.61,1e-08]
[1755867986962,5.56668893,179.64,179.61,0.68000001]
[1755867987176,14.49840924,179.64,179.62,0.68]
[1755867987763,8.93172031,179.63,179.61,1e-08]
[1755867988151,8.93172031,179.63,179.61,0.68000001]
[1755867989058,14.49881263,179.63,179.61,0.68000001]
[1755867990043,8.93172031,179.62,179.61,1e-08]
[1755867991151,9.62172031,179.62,179.61,1e-08]
[1755867991957,15.18902907,179.62,179.61,1e-08]
[1755867992348,5.56730876,179.62,179.61,1e-08]
[1755867992563,14.49902907,179.62,179.61,1e-08]
[1755867993053,5.56730876,179.62,179.61,1e-08]
[1755867993475,5.56730876,179.62,179.61,0.68000001]
[1755867993977,14.55882305,179.63,179.61,0.68000001]
[1755867994566,8.99172031,179.63,179.61,0.68000001]
[1755867994759,0.06,179.63,179.62,0.68]
[1755867995166,0.06,179.63,179.62,9.61172031]
[1755867996085,0.06,179.63,179.62,0.68]
[1755867997377,8.99172031,179.63,179.61,1e-08]
[1755867997958,0.06,179.63,179.61,1e-08]
[1755867998156,5.62699883,179.63,179.61,1e-08]
[1755867999082,8.93172031,179.62,179.61,1e-08]
[1755867999285,9.62172031,179.62,179.61,1e-08]
[1755868000088,26.95411431,179.62,179.61,1e-08]
[1755868000273,32.52142307,179.62,179.61,1e-08]
[1755868000689,32.80574621,179.62,179.61,1e-08]
[1755868000866,50.04606226,179.62,179.61,1e-08]
[1755868001192,50.04606226,179.62,179.59,1e-08]
[1755868001193,26.0,179.6,179.59,1e-08]
[1755868001363,12.6685203,179.6,179.59,1e-08]
[1755868001765,8.93172031,179.6,179.59,1e-08]
[1755868002269,14.49903979,179.62,179.59,0.68000001]
[1755868002482,14.49903979,179.62,179.59,1e-08]
[1755868002483,5.56731948,179.62,179.59,1e-08]
[1755868002661,9.31087299,179.62,179.59,1e-08]
[1755868002868,18.2425933,179.62,179.59,1e-08]
[1755868003070,14.49903979,179.62,179.59,1e-08]
[1755868003883,8.93172031,179.6,179.59,1e-08]
[1755868004185,12.67795355,179.6,179.59,1e-08]
[1755868004375,3.74623324,179.6,179.59,0.68000001]
[1755868004680,132.4,179.61,179.59,0.68000001]
[1755868005083,8.93172031,179.6,179.59,1e-08]
[1755868005299,12.68139705,179.6,179.59,1e-08]
[1755868005664,8.93172031,179.6,179.59,1e-08]
[1755868005889,122.47859061,179.61,179.59,0.68000001]
[1755868006062,9.62172031,179.6,179.59,1e-08]
[1755868006262,14.49964904,179.6,179.59,1e-08]
[1755868006895,15.18964904,179.6,179.59,1e-08]
[1755868007072,9.73764026,179.6,179.59,1e-08]
[1755868007272,14.49964904,179.6,179.59,1e-08]
[1755868007579,18.67039268,179.6,179.59,1e-08]
[1755868007889,19.38047316,179.6,179.59,1e-08]
[1755868009896,67.90778748,179.6,179.59,1e-08]
[1755868010068,72.07963194,179.6,179.59,1e-08]
[1755868010264,72.08102601,179.6,179.59,1e-08]
[1755868011591,72.36534915,179.6,179.59,1e-08]
[1755868011888,116.32534915,179.6,179.59,1e-08]
[1755868013191,34.93172031,179.58,179.57,0.03]
[1755868013390,87.23578296,179.58,179.57,0.03]
[1755868013564,87.94578296,179.58,179.57,0.03]
[1755868013768,101.82570011,179.58,179.57,1e-08]
[1755868014075,26.0,179.56,179.55,0.03]
[1755868014284,83.0639385,179.56,179.55,0.03]
[1755868014585,30.17221819,179.56,179.55,0.03]
[1755868014893,44.67310757,179.56,179.55,0.03]
[1755868015276,14.50088938,179.56,179.55,0.03]
[1755868017878,18.25100303,179.56,179.55,0.03]
[1755868019869,18.96100303,179.56,179.55,0.03]
[1755868020071,18.25100303,179.56,179.55,0.03]
[1755868020607,107.00979342,179.56,179.51,0.03]
[1755868020772,8.93172031,179.52,179.51,0.03]
[1755868021177,9.64172031,179.52,179.51,0.03]
[1755868021892,53.60172031,179.52,179.51,0.03]
[1755868022092,57.35154441,179.52,179.51,0.03]
[1755868022302,53.60172031,179.52,179.51,0.03]
[1755868022684,59.17213029,179.52,179.51,0.03]
[1755868023281,14.50213029,179.52,179.51,0.03]
[1755868023699,5.57040998,179.52,179.51,0.03]
[1755868023881,14.50213029,179.52,179.51,0.03]
[1755868027123,15.21213029,179.52,179.51,0.03]
[1755868027889,59.17213029,179.52,179.51,0.03]
[1755868028686,43.96,179.53,179.51,0.03]
[1755868028904,8.93172031,179.52,179.51,0.03]
[1755868029316,44.67,179.53,179.51,0.03]
[1755868029317,43.96,179.53,179.51,0.03]
[1755868029493,8.93172031,179.52,179.51,0.69]
[1755868029830,8.93172031,179.52,179.51,0.03]
[1755868030711,31.26101603,179.55,179.51,0.03]
[1755868030712,5.56947925,179.55,179.51,0.69]
[1755868031009,8.93172031,179.52,179.51,0.03]
[1755868032314,9.64172031,179.52,179.51,0.03]
[1755868032707,15.21213029,179.52,179.51,0.03]
[1755868033136,59.17213029,179.52,179.51,0.03]
[1755868034334,67.57758689,179.52,179.51,0.03]
[1755868034624,76.5093072,179.52,179.51,0.03]
[1755868035014,76.5093072,179.52,179.49,0.03]
[1755868035015,26.0,179.5,179.49,0.03]
[1755868035217,78.89172031,179.5,179.49,0.03]
[1755868035533,79.60172031,179.5,179.49,0.03]
[1755868036106,96.4317306,179.5,179.49,1e-08]
[1755868036303,110.31039312,179.5,179.49,1e-08]
[1755868036736,114.46617854,179.5,179.49,1e-08]
[1755868036900,120.03720918,179.5,179.49,1e-08]
[1755868037360,54.05798314,179.5,179.49,1e-08]
[1755868037511,62.98970345,179.5,179.49,1e-08]
[1755868037705,48.3997863,179.5,179.49,1e-08]
[1755868037935,88.20434931,179.5,179.49,1e-08]
[1755868038509,88.86434931,179.5,179.49,1e-08]
[1755868038719,79.272629,179.5,179.49,1e-08]
[1755868038919,88.20434931,179.5,179.49,1e-08]
[1755868039527,31.57103064,179.5,179.49,0.72000001]
[1755868039731,40.50275095,179.5,179.49,1e-08]
[1755868040115,44.89986937,179.5,179.49,1e-08]
[1755868040808,44.23986937,179.5,179.49,1e-08]
[1755868041441,35.30814906,179.5,179.49,1e-08]
[1755868041617,31.57103064,179.5,179.49,0.72000001]
[1755868041941,40.50275095,179.5,179.49,0.72000001]
[1755868042119,26.0,179.5,179.49,0.72000001]
[1755868042313,58.46242238,179.52,179.49,0.72000001]
[1755868042515,14.50242238,179.52,179.5,0.72]
[1755868042826,8.93172031,179.51,179.5,0.72]
[1755868043030,5.57103064,179.5,179.49,1e-08]
[1755868043229,14.50275095,179.5,179.49,1e-08]
[1755868044136,18.90293194,179.5,179.49,1e-08]
[1755868046243,32.49852595,179.5,179.49,1e-08]
[1755868046616,45.58611036,179.5,179.49,1e-08]
[1755868046836,50.02645474,179.5,179.49,1e-08]
[1755868047118,5.57227237,179.46,179.45,0.06]
[1755868047318,5.57200977,179.47,179.46,0.72]
[1755868047519,44.24432732,179.47,179.46,0.72]
[1755868047839,44.24432732,179.47,179.45,0.06]
[1755868048047,8.93172031,179.46,179.45,0.06]
[1755868048262,13.33192857,179.46,179.45,0.06]
[1755868048818,26.92752258,179.46,179.45,0.06]
[1755868049038,31.36896462,179.46,179.45,0.06]
[1755868049246,36.94123699,179.46,179.45,0.06]
[1755868051427,36.28123699,179.46,179.45,0.06]
[1755868051747,76.45979495,179.46,179.45,0.06]
[1755868051928,62.20420094,179.46,179.45,0.06]
[1755868052941,9.31248063,179.46,179.45,0.78]
[1755868053138,5.57227237,179.46,179.45,0.78]
[1755868053315,49.51200096,179.47,179.45,0.78]
[1755868053647,5.57174211,179.48,179.45,0.78]
[1755868053945,18.24441698,179.48,179.46,0.72]
[1755868054151,14.50346242,179.48,179.46,0.72]
[1755868054351,5.57174211,179.48,179.46,0.72]
[1755868054638,5.57174211,179.48,179.45,0.06]
[1755868054853,31.5713865,179.49,179.47,0.72]
[1755868055149,31.5713865,179.49,179.48,0.72]
[1755868055348,35.31392251,179.49,179.45,9.71172031]
[1755868055534,40.50310681,179.49,179.46,0.72]
[1755868056552,8.93172031,179.47,179.45,0.06]
[1755868058631,5.57227237,179.46,179.45,0.06]
[1755868058947,14.50399268,179.46,179.45,0.06]
[1755868059150,5.57227237,179.46,179.45,0.06]
[1755868060127,5.57227237,179.46,179.45,0.78]
[1755868060847,5.57227237,179.46,179.45,0.06]
[1755868061220,12.63158518,179.46,179.45,0.06]
[1755868061421,16.37786482,179.46,179.45,0.06]
[1755868062026,21.20080138,179.46,179.45,0.06]
[1755868062253,14.14148857,179.46,179.45,0.06]
[1755868062448,21.20129867,179.46,179.45,0.06]
[1755868062638,65.14129867,179.46,179.45,0.06]
[1755868064235,65.14172845,179.46,179.45,0.06]
[1755868064751,65.14278908,179.46,179.45,0.06]
[1755868064953,21.20278908,179.46,179.45,0.06]
[1755868065247,65.14278908,179.46,179.45,0.06]
[1755868065455,9.31855201,179.46,179.45,0.06]
[1755868065658,12.63158518,179.46,179.45,0.78]
[1755868065962,16.37786482,179.46,179.45,0.06]
[1755868066531,17.03786482,179.46,179.45,0.06]
[1755868067059,25.3681124,179.46,179.45,0.06]
[1755868067381,21.20264768,179.46,179.45,0.06]
[1755868067570,16.37786482,179.46,179.45,0.06]
[1755868067758,20.54294858,179.46,179.45,0.06]
[1755868068132,16.37786482,179.46,179.45,0.06]
[1755868068555,16.37968514,179.46,179.45,0.06]
[1755868068979,9.32037233,179.46,179.45,0.77]
[1755868069198,5.57227237,179.46,179.45,0.77]
[1755868069498,9.32037233,179.46,179.45,0.06]
[1755868069660,9.32037233,179.46,179.45,0.77]
[1755868070155,9.32037233,179.46,179.45,0.06]
[1755868070658,9.32037233,179.46,179.45,0.77]
[1755868071361,3.74809996,179.46,179.45,0.77]
[1755868071561,0.03,179.47,179.45,0.77]
[1755868071771,9.35010921,179.47,179.45,0.06]
[1755868072487,9.35010921,179.47,179.46,0.71]
[1755868072877,3.77809996,179.47,179.46,0.71]
[1755868073461,9.35006184,179.47,179.46,0.71]
[1755868073659,5.60196188,179.47,179.45,0.06]
[1755868074184,17.09937465,179.47,179.45,0.06]
[1755868074384,3.74809996,179.46,179.45,0.06]
[1755868074594,4.43809996,179.46,179.45,0.06]
[1755868074811,14.97707084,179.46,179.45,0.06]
[1755868075097,10.80741277,179.46,179.45,0.06]
[1755868075386,15.66821719,179.46,179.45,0.06]
[1755868075595,20.55048956,179.46,179.45,0.06]
[1755868076294,21.24048956,179.46,179.45,0.06]
[1755868076673,14.18117675,179.46,179.45,0.06]
[1755868076886,21.241931,179.46,179.45,0.06]
[1755868077360,25.41577905,179.46,179.45,0.06]
[1755868078273,30.100904,179.46,179.45,0.06]
[1755868078860,43.98082115,179.46,179.45,0.06]
[1755868079494,51.04013396,179.46,179.45,0.06]
[1755868079894,35.63472724,179.46,179.45,0.06]
[1755868080081,13.87991715,179.44,179.43,0.1]
[1755868080396,13.59559401,179.43,179.41,0.1]
[1755868080585,209.07447736,179.42,179.41,0.1]
[1755868080792,215.33799201,179.42,179.41,0.1]
[1755868080980,82.93799201,179.42,179.41,0.1]
[1755868082097,82.93757744,179.42,179.41,0.1]
[1755868082472,82.93583844,179.42,179.41,0.1]
[1755868083792,68.65024443,179.42,179.41,0.1]
[1755868084562,64.47624814,179.42,179.41,0.1]
[1755868086299,69.33745319,179.42,179.41,0.1]
[1755868086470,38.3230472,179.42,179.41,0.1]
[1755868086808,78.07184215,179.42,179.41,0.1]
[1755868088188,82.23837105,179.42,179.41,0.1]
[1755868088494,64.47185223,179.42,179.41,0.1]
[1755868088700,68.64248109,179.42,179.41,0.1]
[1755868091290,64.47097861,179.42,179.41,0.1]
[1755868093974,65.16097861,179.42,179.41,0.1]
[1755868094172,58.1016658,179.42,179.41,0.1]
[1755868094388,65.16097861,179.42,179.41,0.1]
[1755868095781,69.32937205,179.42,179.41,0.1]
[1755868096472,82.92496606,179.42,179.41,0.1]
[1755868096670,82.92496606,179.42,179.41,1e-08]
[1755868097404,82.92253351,179.42,179.41,1e-08]
[1755868097995,82.9219822,179.42,179.41,1e-08]
[1755868100380,82.92150068,179.42,179.41,1e-08]
[1755868102804,17.65659386,179.42,179.41,0.66000001]
[1755868103008,64.46845194,179.42,179.41,0.66000001]
[1755868103581,65.17845194,179.42,179.41,1e-08]
[1755868103905,68.63706296,179.42,179.41,1e-08]
[1755868104081,68.63706296,179.42,179.41,0.66000001]
[1755868104404,68.63706296,179.42,179.41,1e-08]
[1755868104776,61.57775015,179.42,179.41,1e-08]
[1755868104979,68.63706296,179.42,179.41,1e-08]
[1755868106077,82.94265697,179.42,179.41,1e-08]
[1755868106511,132.39999999,179.4,179.39,0.06]
[1755868106720,102.64226784,179.4,179.39,1e-08]
[1755868107012,96.29295503,179.4,179.39,1e-08]
[1755868107208,103.35275129,179.4,179.39,1e-08]
[1755868107408,102.64255937,179.4,179.39,1e-08]
[1755868107815,98.47304474,179.4,179.39,1e-08]
[1755868108189,91.41373193,179.4,179.39,1e-08]
[1755868108389,98.47304474,179.4,179.39,1e-08]
[1755868108601,104.04718074,179.4,179.39,1e-08]
[1755868108805,104.75718074,179.4,179.39,1e-08]
[1755868109003,108.92642469,179.4,179.39,1e-08]
[1755868109407,108.21642469,179.4,179.39,1e-08]